bitfinex/quotes_ETHUSD_20230403
["timestamp","ask_amount","ask_price","bid_price","bid_amount"]
[1680560326071,5.30836,1810.8,1810.7,0.94801546]
[1680560326301,5.9599217,1810.8,1810.7,0.94801546]
[1680560326506,8.9599217,1810.8,1810.3,0.1]
[1680560326708,8.9599217,1810.8,1810.3,2.86602218]
[1680560327109,3.0,1810.7,1810.1,0.008]
[1680560327274,4.48,1810.6,1810.0,2.0]
[1680560327607,0.448,1810.5,1810.4,0.94953847]
[1680560327814,3.72416,1810.5,1810.4,0.94953847]
[1680560328112,3.73016,1810.5,1810.4,0.94953847]
[1680560328308,0.27616,1810.5,1810.4,0.94953847]
[1680560328481,0.27616,1810.5,1810.2,0.102]
[1680560328681,0.27616,1810.5,1810.2,0.1]
[1680560329071,3.27616,1810.5,1810.0,2.0]
[1680560329272,4.446,1810.4,1810.0,2.0]
[1680560329485,1.2732,1810.3,1810.0,4.76602218]
[1680560329697,1.2732,1810.3,1810.0,4.76802218]
[1680560329906,0.2762,1810.3,1810.1,2.76602218]
[1680560330073,1.10462,1810.6,1810.1,2.76602218]
[1680560330074,0.006,1810.6,1810.4,0.1]
[1680560330268,5.59031,1811.1,1810.5,2.76602218]
[1680560330473,1.387311,1811.0,1810.5,2.76602218]
[1680560330693,4.48,1810.9,1810.5,2.76602218]
[1680560330910,0.27612,1810.8,1810.5,2.76602218]
[1680560331118,0.27612,1810.8,1810.4,0.1]
[1680560331302,0.27612,1810.8,1810.2,5.896]
[1680560331480,0.807155,1810.8,1810.3,2.76602218]
[1680560331818,0.807155,1810.8,1810.5,0.1]
[1680560332510,0.807155,1810.8,1810.6,0.88106138]
[1680560332996,0.27612,1810.8,1810.6,0.88106138]
[1680560333908,4.48,1810.7,1810.6,0.88106138]
[1680560334209,8.3084,1810.7,1810.6,0.88106138]
[1680560334525,8.3104,1810.7,1810.2,0.1]
[1680560336310,8.3104,1810.7,1810.3,2.76602218]
[1680560336531,0.8364,1810.7,1810.3,9.5382244]
[1680560336736,0.8284,1810.7,1810.6,0.1]
[1680560337272,0.8284,1810.7,1810.3,0.108]
[1680560337569,0.08284,1810.6,1810.2,0.1]
[1680560337858,1.93316,1810.5,1810.2,0.1]
[1680560338446,6.41316,1810.5,1810.0,2.0]
[1680560338669,4.6954,1810.3,1810.0,2.0]
[1680560340714,1.9334,1810.3,1810.0,4.76602218]
[1680560340914,1.9394,1810.3,1810.0,1.9]
[1680560341114,1.9334,1810.3,1810.0,1.9]
[1680560341340,0.19334,1810.2,1810.0,1.9]
[1680560341540,1.93358,1810.1,1810.0,1.9]
[1680560342025,1.93358,1810.1,1810.0,4.66602218]
[1680560342243,1.93358,1810.1,1810.0,1.9]
[1680560343530,6.41358,1810.1,1810.0,1.9]
[1680560343775,7.33396,1810.1,1810.0,1.9]
[1680560344072,10.33396,1810.1,1810.0,1.85]
[1680560344289,5.85396,1810.1,1810.0,1.85]
[1680560344981,10.33396,1810.1,1810.0,1.85]
[1680560345124,7.33396,1810.1,1810.0,1.85]
[1680560346483,1.93558,1810.1,1810.0,4.71602218]
[1680560346686,0.008,1810.2,1810.0,10.61202218]
[1680560346980,1.10466,1810.6,1810.1,8.66202218]
[1680560346981,0.27618,1810.4,1810.1,8.66202218]
[1680560347143,0.82854,1810.4,1810.2,2.7884392]
[1680560347524,0.27618,1810.4,1810.2,2.7884392]
[1680560347920,0.5523,1810.6,1810.2,3.15087906]
[1680560348142,1.10456,1810.7,1810.6,0.1]
[1680560348143,0.55227,1810.7,1810.6,0.1]
[1680560348391,0.82836,1810.8,1810.6,2.76602218]
[1680560348600,0.27612,1810.8,1810.7,8.66202218]
[1680560348742,0.57566912,1811.1,1811.0,0.1]
[1680560348743,0.004,1811.1,1811.0,0.1]
[1680560348943,0.27605,1811.3,1811.2,0.1]
[1680560349163,0.27605,1811.3,1811.2,8.76202218]
[1680560349450,0.82813,1811.3,1811.2,0.102]
[1680560349647,1.17637574,1811.3,1811.0,0.77953323]
[1680560349842,1.17637574,1811.3,1811.1,2.76602218]
[1680560350292,1.17637574,1811.3,1811.0,0.77953323]
[1680560350293,3.93681574,1811.3,1811.0,0.77953323]
[1680560350447,0.39368157,1811.2,1811.0,0.77953323]
[1680560350648,2.50618912,1811.1,1811.0,0.77953323]
[1680560350964,4.69423,1810.8,1810.3,0.106]
[1680560351161,1.93306,1810.6,1810.4,0.1]
[1680560352393,0.27615,1810.6,1810.4,0.1]
[1680560352714,1.93305,1810.6,1810.4,0.106]
[1680560353064,0.27615,1810.6,1810.4,0.106]
[1680560353262,0.82845,1810.6,1810.4,0.004]
[1680560353598,0.911335,1810.5,1810.4,0.1]
[1680560355163,0.911335,1810.5,1810.2,0.006]
[1680560355590,0.911335,1810.5,1810.4,0.1]
[1680560355795,0.82849,1810.5,1810.4,0.1]
[1680560357969,0.002,1810.7,1810.6,0.1]
[1680560358189,1.12792451,1810.9,1810.6,2.86602218]
[1680560358416,1.12792451,1810.9,1810.6,0.106]
[1680560358417,0.8284,1810.7,1810.6,0.106]
[1680560358625,1.93294,1810.7,1810.5,0.006]
[1680560358773,1.93294,1810.7,1810.5,0.1]
[1680560359621,0.8284,1810.7,1810.5,0.1]
[1680560360448,0.57770451,1810.9,1810.6,3.61493498]
[1680560360574,0.57770451,1811.1,1810.8,0.1]
[1680560360773,0.85178451,1811.1,1811.0,0.1]
[1680560361007,0.98201024,1811.1,1811.0,0.1]
[1680560361334,2.10986475,1811.1,1811.0,0.1]
[1680560361620,1.53416024,1811.1,1811.0,0.1]
[1680560361800,0.98201024,1811.1,1811.0,0.1]
[1680560362008,0.27608,1811.1,1811.0,0.1]
[1680560362870,0.27606,1811.2,1811.0,2.86602218]
[1680560363477,0.85175451,1811.3,1811.2,0.1]
[1680560363726,1.71676671,1811.3,1811.2,2.86602218]
[1680560364037,1.28283828,1811.3,1811.2,2.86602218]
[1680560364336,0.11000001,1811.4,1811.2,8.79042682]
[1680560364504,0.11000001,1811.4,1811.3,3.64506486]
[1680560364706,0.11000001,1811.4,1811.3,3.65106486]
[1680560364939,0.38602001,1811.4,1811.3,3.65106486]
[1680560365294,1.55129682,1812.1,1812.0,0.1]
[1680560365646,0.11000001,1812.1,1812.0,14.8815544]
[1680560365787,2e-08,1812.2,1812.1,6.896]
[1680560365985,0.11000001,1812.5,1812.4,0.1]
[1680560366242,0.11000001,1812.5,1812.4,8.76202218]
[1680560366460,0.11000001,1812.5,1812.4,2.86602218]
[1680560367193,0.38586001,1812.5,1812.4,2.86602218]
[1680560367612,0.11000001,1812.5,1812.4,0.1]
[1680560367830,0.11000001,1812.5,1812.4,2.86602218]
[1680560368600,0.11000001,1812.5,1812.4,8.76202218]
[1680560368855,1e-08,1812.5,1812.4,13.23602218]
[1680560368992,1e-08,1812.5,1812.4,8.76402218]
[1680560369311,1e-08,1812.5,1812.4,9.9185335]
[1680560369650,1e-08,1812.5,1812.4,11.8102835]
[1680560370005,1e-08,1812.5,1812.4,10.9826635]
[1680560370323,1e-08,1812.5,1812.4,10.7526635]
[1680560370497,1e-08,1812.5,1812.4,11.7526635]
[1680560370698,1e-08,1812.5,1812.4,10.7526635]
[1680560370930,1e-08,1812.5,1812.4,8.76402218]
[1680560371401,1e-08,1812.5,1812.4,9.87402218]
[1680560371604,1e-08,1812.5,1812.4,8.76402218]
[1680560373203,1e-08,1812.5,1812.4,11.70164218]
[1680560373518,1e-08,1812.5,1812.4,11.14989218]
[1680560373700,0.00014801,1812.7,1812.6,6.996]
[1680560373905,0.00014801,1812.7,1812.6,10.82155218]
[1680560374101,0.00014801,1812.7,1812.6,11.93155218]
[1680560374311,0.00014801,1812.7,1812.6,22.08365218]
[1680560374687,0.00014801,1812.7,1812.6,23.0565986]
[1680560375613,0.00014801,1812.7,1812.6,21.5049086]
[1680560375816,0.00014801,1812.7,1812.6,21.2749086]
[1680560376056,0.00014801,1812.7,1812.6,22.2749086]
[1680560376440,0.00014801,1812.7,1812.6,22.5049086]
[1680560376627,0.00014801,1812.7,1812.6,23.6082886]
[1680560377231,0.00014801,1812.7,1812.6,23.63067592]
[1680560377919,0.00014801,1812.7,1812.6,22.25145592]
[1680560378137,0.00014801,1812.7,1812.6,23.63067592]
[1680560378769,0.11000001,1813.6,1813.4,0.1]
[1680560378968,0.11000001,1813.6,1813.5,2.76602218]
[1680560379175,0.11600001,1813.6,1813.5,2.66602218]
[1680560379381,0.11000001,1813.6,1813.5,8.56202218]
[1680560379680,0.11000001,1813.6,1813.5,8.56402218]
[1680560379833,0.11000001,1813.6,1813.5,9.4304244]
[1680560380027,0.11000001,1813.6,1813.5,10.2575344]
[1680560380362,0.11000001,1813.6,1813.5,9.4304244]
[1680560380531,0.11000001,1813.6,1813.5,10.29901862]
[1680560381234,0.38569001,1813.6,1813.5,0.87059422]
[1680560381461,0.93707001,1813.6,1813.5,0.86859422]
[1680560381663,1.48545422,1813.6,1813.5,0.86859422]
[1680560381878,2.38545422,1813.6,1813.5,0.86859422]
[1680560382059,2.73427664,1813.6,1813.5,0.86859422]
[1680560382278,5.73427664,1813.6,1813.5,0.86859422]
[1680560382482,0.9,1812.9,1812.1,0.1]
[1680560382661,0.9,1812.9,1812.8,0.006]
[1680560382662,5.58861,1812.9,1812.8,0.006]
[1680560382862,10.16061,1812.9,1812.3,0.1]
[1680560383103,0.27585,1812.6,1811.9,0.27595]
[1680560383248,0.8275,1812.7,1812.4,0.1]
[1680560383461,0.8275,1812.7,1812.4,0.90270921]
[1680560383703,1.93082,1812.7,1812.4,0.80270921]
[1680560383997,2.213902,1812.7,1812.4,0.80270921]
[1680560384201,0.9,1812.6,1812.4,0.80270921]
[1680560384412,0.9,1812.3,1811.8,5.996]
[1680560384705,0.82772,1812.2,1811.8,0.008]
[1680560384907,0.82772,1812.2,1812.0,0.1]
[1680560385253,0.82772,1812.2,1811.5,5.896]
[1680560385454,0.82772,1812.2,1811.7,5.896]
[1680560385669,0.82772,1812.2,1812.0,0.1]
[1680560385873,2.00352,1812.4,1812.0,0.1]
[1680560386207,0.2759,1812.3,1812.0,0.1]
[1680560386359,0.82768,1812.3,1812.1,0.80448272]
[1680560386751,1.000448,1812.3,1812.1,0.80448272]
[1680560387223,0.82768,1812.3,1812.1,0.80448272]
[1680560387504,0.002,1812.5,1811.9,0.12239598]
[1680560387663,0.82767,1812.3,1811.9,0.1]
[1680560388201,0.27589,1812.3,1811.9,0.1]
[1680560388401,0.82767,1812.3,1811.9,0.1]
[1680560389593,0.82767,1812.3,1812.0,0.1]
[1680560390202,1.000437,1812.3,1811.7,0.008]
[1680560390397,2.104007,1812.3,1812.1,0.80448272]
[1680560390595,0.2104007,1812.2,1812.1,0.80448272]
[1680560390796,1.0381107,1812.2,1812.1,0.80448272]
[1680560391479,1.0381107,1812.2,1811.9,0.1]
[1680560391735,0.2779,1812.3,1811.9,0.1]
[1680560392033,0.27587,1812.4,1811.9,2.86602218]
[1680560392177,3.0,1812.5,1811.9,2.86602218]
[1680560392520,4.26882161,1812.5,1812.0,0.80507402]
[1680560392728,4.26882161,1812.5,1812.0,0.90507402]
[1680560393228,0.008,1812.6,1812.0,3.5710962]
[1680560393376,0.9,1812.7,1812.2,0.1]
[1680560393724,0.27584,1812.6,1812.2,0.1]
[1680560394100,0.55963,1812.8,1812.3,2.76602218]
[1680560394428,1.08037943,1812.8,1812.3,0.80330032]
[1680560394636,0.27585,1812.6,1812.3,0.80330032]
[1680560395285,0.82754,1812.6,1812.3,0.80330032]
[1680560396175,1.63403943,1812.8,1812.3,3.5693225]
[1680560396381,0.27584,1812.6,1812.3,3.93625475]
[1680560396577,0.82753,1812.6,1812.3,3.93625475]
[1680560397524,0.82753,1812.6,1812.3,0.80330032]
[1680560398552,1.72753,1812.6,1812.3,0.80330032]
[1680560398718,4.48,1812.5,1812.3,0.80330032]
[1680560399034,1.93112,1812.4,1812.3,0.80330032]
[1680560399399,1.93112,1812.4,1812.1,0.1]
[1680560399629,2.572432,1812.4,1812.1,0.1]
[1680560399988,1.93112,1812.4,1812.1,2.86602218]
[1680560400499,1.93112,1812.4,1812.2,0.67104199]
[1680560400721,0.82762,1812.4,1812.2,0.67104199]
[1680560401331,0.14094427,1812.9,1812.3,8.66202218]
[1680560401579,0.002,1813.3,1812.8,8.66202218]
[1680560401859,0.11000001,1813.6,1813.4,0.1]
[1680560402040,0.11000001,1813.6,1813.4,2.86602218]
[1680560402242,0.11000001,1813.6,1813.2,0.27574]
[1680560402243,0.11000001,1813.6,1813.2,0.002]
[1680560402405,0.93707001,1813.6,1813.2,2.76602218]
[1680560402604,1.04177701,1813.6,1813.2,2.76602218]
[1680560403044,0.93707001,1813.6,1813.2,2.86602218]
[1680560403244,0.11000001,1813.6,1813.2,2.86602218]
[1680560403445,0.38570001,1813.6,1813.2,2.86602218]
[1680560403760,0.11000001,1813.6,1813.5,0.1]
[1680560403920,0.11000001,1813.6,1813.5,5.996]
[1680560404242,0.11000001,1813.6,1813.5,6.8733]
[1680560404480,0.11000001,1813.6,1813.5,7.42471]
[1680560405316,0.11000001,1813.6,1813.5,8.62971]
[1680560405512,0.11000001,1814.1,1814.0,0.1]
[1680560405825,0.11000001,1814.1,1814.0,8.76202218]
[1680560406141,0.11000001,1814.1,1814.0,0.099]
[1680560406446,0.11000001,1814.1,1814.0,0.097]
[1680560407020,0.11000001,1814.1,1814.0,2.86302218]
[1680560407326,0.11000001,1814.1,1814.0,9.0553244]
[1680560407531,0.11000001,1814.1,1814.0,8.76102218]
[1680560408676,0.11000001,1814.1,1814.0,9.03665218]
[1680560408819,0.11000001,1814.1,1814.0,8.76102218]
[1680560409329,0.11000001,1814.1,1814.0,9.03665218]
[1680560409531,0.11200001,1814.7,1814.1,0.06978186]
[1680560409754,0.11000001,1814.7,1814.6,0.1]
[1680560409912,0.11000001,1814.7,1814.6,2.86602218]
[1680560410112,0.11000001,1814.7,1814.6,8.66202218]
[1680560410318,0.11000001,1814.7,1814.6,9.51624331]
[1680560410552,0.11000001,1814.7,1814.6,11.31470789]
[1680560410949,0.11000001,1814.7,1814.6,10.20470789]
[1680560411272,0.11000001,1814.7,1814.6,9.45248676]
[1680560411434,0.11000001,1814.7,1814.6,0.69046458]
[1680560411617,0.11000001,1814.7,1814.6,0.68846458]
[1680560412069,0.9,1814.6,1814.1,0.1]
[1680560412267,5.34869,1814.5,1813.9,0.1]
[1680560412417,5.35069,1814.5,1813.9,2.86602218]
[1680560412618,5.35669,1814.5,1813.9,2.86602218]
[1680560413373,0.008,1814.5,1814.0,2.76602218]
[1680560413669,0.27556,1814.5,1814.2,0.1]
[1680560414033,0.27556,1814.5,1814.0,3.44372372]
[1680560414217,0.27556,1814.5,1814.0,0.57770154]
[1680560414218,0.007,1814.1,1814.0,0.57770154]
[1680560414419,0.28261,1814.1,1814.0,0.1]
[1680560414671,0.007,1814.1,1813.8,0.1]
[1680560414820,0.007,1814.1,1814.0,0.099]
[1680560415022,0.007,1814.1,1814.0,4.24065218]
[1680560415369,0.007,1814.1,1814.0,6.3259774]
[1680560415576,0.007,1814.1,1814.0,11.6787174]
[1680560415878,0.007,1814.1,1814.0,11.42545745]
[1680560416081,0.007,1814.1,1814.0,8.76902218]
[1680560416366,0.007,1814.1,1814.0,2.87402218]
[1680560416549,0.007,1814.1,1814.0,0.1]
[1680560417136,0.007,1814.1,1813.7,0.102]
[1680560417336,0.007,1814.1,1813.3,1.11]
[1680560417337,0.28261,1814.1,1813.3,1.11]
[1680560417577,0.28261,1814.1,1814.0,0.57770154]
[1680560418339,0.28261,1814.1,1813.5,0.006]
[1680560418536,0.9,1814.0,1813.5,2.76602218]
[1680560418740,0.28261,1814.1,1813.7,5.996]
[1680560418971,0.28261,1814.1,1813.8,2.76602218]
[1680560419323,0.83384,1814.1,1813.7,0.102]
[1680560419526,0.83384,1814.1,1813.4,0.1]
[1680560419830,0.82696,1813.9,1813.4,0.1]
[1680560420342,5.25496,1813.9,1813.1,0.1]
[1680560420551,6.15696,1813.9,1813.1,2.86602218]
[1680560420729,6.15696,1813.9,1813.2,2.78840211]
[1680560420730,3.0,1813.8,1813.2,2.78840211]
[1680560420932,1.12704,1813.7,1813.2,2.88840211]
[1680560421166,1.12704,1813.7,1813.2,2.86602218]
[1680560421335,1.12704,1813.7,1813.2,0.1]
[1680560421671,1.12704,1813.7,1813.3,0.63418296]
[1680560421672,2.22975,1813.7,1813.3,0.63418296]
[1680560422022,0.222975,1813.6,1813.3,0.53418296]
[1680560422225,1.92994,1813.5,1813.3,0.53418296]
[1680560422472,1.92994,1813.5,1812.7,0.006]
[1680560422776,1.92994,1813.5,1813.1,0.1]
[1680560423359,1.92994,1813.5,1812.8,0.104]
[1680560423566,0.192994,1813.4,1813.2,0.53477348]
[1680560423878,0.82722,1813.3,1813.2,0.53477348]
[1680560424447,0.82722,1813.3,1813.0,0.1]
[1680560424643,1.93018,1813.3,1813.0,0.1]
[1680560425384,1.93018,1813.3,1813.0,2.76602218]
[1680560425545,1.93018,1813.3,1813.1,0.53536407]
[1680560426383,1.93018,1813.3,1813.1,0.63536407]
[1680560426672,1.93018,1813.3,1813.1,0.53536407]
[1680560427097,5.24726,1813.2,1813.1,0.53536407]
[1680560427276,5.884282,1813.2,1813.1,0.53536407]
[1680560427478,5.884282,1813.2,1812.3,1.112]
[1680560427479,5.884282,1813.2,1812.4,0.006]
[1680560427796,5.884282,1813.2,1812.5,0.1]
[1680560427797,1.93071,1812.8,1812.5,0.1]
[1680560428410,1.93071,1812.8,1812.6,0.49409786]
[1680560428411,2.123781,1812.8,1812.6,0.49409786]
[1680560428699,2.67715038,1812.8,1812.6,0.49409786]
[1680560429447,2.67715038,1812.8,1812.4,0.1]
[1680560429647,2.123781,1812.8,1812.4,0.1]
[1680560430084,2.123781,1812.8,1812.4,2.76602218]
[1680560430085,0.82744,1812.8,1812.4,2.76602218]
[1680560430267,0.27581,1812.8,1812.7,0.1]
[1680560430462,0.82744,1812.8,1812.5,0.50068883]
[1680560430830,5.443509,1812.8,1812.5,0.49468883]
[1680560430994,1.93091,1812.6,1812.5,0.49468883]
[1680560431193,4.93091,1812.6,1812.5,0.49468883]
[1680560431594,4.93091,1812.6,1812.2,0.1]
[1680560431968,9.35391,1812.6,1812.2,0.1]
[1680560432166,0.935391,1812.5,1812.2,0.1]
[1680560432365,0.82762,1812.4,1812.2,0.1]
[1680560434666,0.82475848,1812.4,1812.2,0.1]
[1680560435399,0.82475848,1812.4,1812.2,2.86602218]
[1680560435881,0.002,1812.5,1812.3,2.78841321]
[1680560436089,0.5516,1812.9,1812.8,0.1]
[1680560436305,1.9306,1812.9,1812.5,0.1]
[1680560436527,1.9306,1812.9,1812.8,0.1]
[1680560437539,0.2758,1812.9,1812.8,0.1]
[1680560437874,0.8274,1812.9,1812.8,2.86602218]
[1680560438134,0.002,1813.2,1813.0,0.1]
[1680560438499,0.27574,1813.3,1813.2,0.1]
[1680560438664,0.82722,1813.3,1813.1,2.76602218]
[1680560438810,0.82722,1813.3,1813.2,0.1]
[1680560439180,0.007,1814.1,1814.0,0.1]
[1680560439462,0.007,1814.1,1814.0,10.03765218]
[1680560439666,0.007,1814.1,1814.0,11.59661345]
[1680560439879,0.78545001,1815.2,1814.2,1.0]
[1680560440017,0.11600001,1815.2,1814.4,3.04159218]
[1680560440217,0.11600001,1815.2,1814.6,0.1]
[1680560440488,0.11600001,1815.2,1814.6,8.76202218]
[1680560440626,4.428,1814.8,1814.6,0.002]
[1680560440975,4.428,1814.8,1814.5,0.1]
[1680560440976,0.83932001,1814.7,1814.5,0.1]
[1680560441372,0.83932001,1814.7,1814.1,0.096625]
[1680560441583,0.83932001,1814.7,1814.3,0.096625]
[1680560441871,0.83932001,1814.7,1813.7,1.11]
[1680560441872,0.82669,1814.5,1814.1,0.096625]
[1680560442180,0.83269,1814.5,1814.1,0.096625]
[1680560442626,0.83269,1814.5,1814.2,0.55227317]
[1680560443221,0.006,1814.5,1814.2,0.55227317]
[1680560443454,0.28155,1814.6,1814.3,0.096625]
[1680560443837,0.28155,1814.6,1814.0,5.92037005]
[1680560444066,0.28155,1814.6,1814.1,2.76602218]
[1680560445126,0.28154,1814.6,1814.1,8.66202218]
[1680560445323,0.28154,1814.6,1814.2,6.78456981]
[1680560445324,0.006,1814.6,1814.2,6.78456981]
[1680560445528,0.27554,1814.6,1814.5,0.096625]
[1680560445880,0.27554,1814.6,1814.2,0.002]
[1680560446169,0.479415,1814.6,1814.3,0.096625]
[1680560446580,5.331375,1814.4,1813.8,0.002]
[1680560446879,5.331375,1814.4,1813.7,5.896]
[1680560446880,2.832645,1814.2,1813.7,0.002]
[1680560447024,2.832645,1814.2,1813.4,0.096625]
[1680560447367,2.838645,1814.2,1813.2,7.29460222]
[1680560447590,0.82695,1813.9,1813.6,0.096625]
[1680560448167,0.006,1814.0,1813.8,0.096625]
[1680560448365,0.27559,1814.3,1813.5,0.4]
[1680560448583,0.2756,1814.2,1813.8,0.02237252]
[1680560448736,0.2776,1814.3,1814.1,0.096625]
[1680560448934,0.02637254,1814.4,1814.2,5.76837252]
[1680560448935,0.006,1814.4,1814.2,5.76837252]
[1680560449138,0.006,1814.6,1814.5,0.096625]
[1680560449376,0.002,1815.0,1814.5,2.86264718]
[1680560449377,0.006,1815.0,1814.5,2.86264718]
[1680560449624,0.006,1815.0,1814.1,4.457]
[1680560449625,0.38552001,1814.7,1814.4,0.002]
[1680560449738,1.92889,1814.5,1813.7,10.882725]
[1680560449945,1.92889,1814.5,1814.3,0.096625]
[1680560450253,1.92889,1814.5,1813.6,0.006]
[1680560450254,0.8268,1814.3,1814.1,0.096625]
[1680560451339,0.02837254,1814.4,1813.9,5.896]
[1680560451340,0.006,1814.4,1813.9,5.896]
[1680560451544,0.27554,1814.6,1814.2,6.58631299]
[1680560451851,0.27554,1814.6,1814.2,6.58831299]
[1680560451852,0.28154,1814.6,1814.2,6.58831299]
[1680560452187,0.27554,1814.6,1814.5,0.096625]
[1680560453604,0.28154,1814.6,1814.5,0.096625]
[1680560454173,0.27554,1814.6,1814.5,0.096625]
[1680560454419,0.27554,1814.6,1814.5,0.78580581]
[1680560456911,0.11600001,1814.7,1814.5,9.52640857]
[1680560457115,0.11000001,1814.7,1814.6,8.66202218]
[1680560457329,0.39152001,1814.7,1814.6,8.66402218]
[1680560457536,0.38552001,1814.7,1814.6,8.66402218]
[1680560457744,0.11200001,1815.2,1815.0,0.096625]
[1680560457940,0.11000001,1815.2,1815.1,8.93748218]
[1680560458246,0.11000001,1815.7,1815.6,0.096625]
[1680560458581,0.11000001,1815.7,1815.6,8.75864718]
[1680560458691,0.901375,1815.3,1815.1,0.002]
[1680560458891,0.897375,1815.3,1815.1,2.76602218]
[1680560459303,0.897375,1815.3,1814.7,0.108625]
[1680560459504,0.00233627,1814.7,1814.5,0.68918081]
[1680560459910,1.92879,1814.6,1814.5,0.68918081]
[1680560460113,4.68421,1814.6,1814.5,0.68918081]
[1680560460326,4.70658254,1814.6,1814.5,0.68918081]
[1680560460531,4.70658254,1814.6,1814.3,0.102625]
[1680560460730,7.70658254,1814.6,1814.3,2.86864718]
[1680560460991,7.70858254,1814.6,1814.3,2.86864718]
[1680560461191,4.70858254,1814.6,1814.3,2.86864718]
[1680560461398,4.70658254,1814.6,1814.4,0.53035246]
[1680560462010,5.17827442,1814.6,1814.4,0.53035246]
[1680560462196,5.18027442,1814.6,1814.4,0.53035246]
[1680560462392,5.18027442,1814.6,1814.0,0.006]
[1680560462393,0.27754,1814.6,1814.5,8.76464718]
[1680560462593,0.82662,1814.6,1814.5,8.77264718]
[1680560462895,0.82662,1814.6,1814.5,2.87664718]
[1680560463093,0.82662,1814.6,1814.5,2.87464718]
[1680560463537,0.82662,1814.6,1814.5,3.40470937]
[1680560463754,0.82662,1814.6,1814.5,3.39870937]
[1680560464716,0.27554,1814.6,1814.5,9.29470937]
[1680560464917,0.27554,1814.6,1814.5,9.30270937]
[1680560465336,0.00233627,1814.7,1814.5,10.23298031]
[1680560465538,0.00233627,1814.7,1814.6,8.66202218]
[1680560465737,0.00233627,1814.7,1814.6,8.67002218]
[1680560465738,0.27785627,1814.7,1814.6,8.67002218]
[1680560465940,0.00233627,1814.7,1814.6,10.80332021]
[1680560466136,0.27785627,1814.7,1814.6,10.80332021]
[1680560466358,0.00233627,1814.7,1814.6,10.80332021]
[1680560466567,0.27552,1814.7,1814.6,10.80332021]
[1680560466707,0.27552,1814.8,1814.7,0.102625]
[1680560466906,0.27552,1814.8,1814.7,8.76464718]
[1680560467243,0.82654,1814.8,1814.7,8.77264718]
[1680560467758,0.002,1815.1,1815.0,0.102625]
[1680560467965,0.11600001,1815.7,1815.5,0.102625]
[1680560468117,0.11000001,1815.7,1815.6,8.66202218]
[1680560468311,0.11000001,1815.7,1815.6,8.66402218]
[1680560468566,0.11600001,1815.7,1815.6,8.66402218]
[1680560468806,0.11000001,1815.7,1815.6,8.66402218]
[1680560469095,0.38537001,1815.7,1815.6,2.76802218]
[1680560469293,0.38537001,1815.7,1815.6,2.76602218]
[1680560469294,0.93612001,1815.7,1815.6,2.76602218]
[1680560469497,0.93612001,1815.7,1815.6,3.49547593]
[1680560469800,0.93612001,1815.7,1815.6,0.72945375]
[1680560469801,2.03762001,1815.7,1815.6,0.72945375]
[1680560470348,2.25238201,1815.7,1815.6,0.72945375]
[1680560470543,2.25238201,1815.7,1815.4,0.102625]
[1680560470855,2.25238201,1815.7,1815.2,0.008]
[1680560471054,2.25238201,1815.7,1814.8,11.085]
[1680560471253,2.25238201,1815.7,1815.3,0.102625]
[1680560471443,4.68217,1815.4,1815.0,0.102625]
[1680560471643,4.68217,1815.4,1814.9,2.77402218]
[1680560471644,0.02237254,1815.3,1815.2,0.102625]
[1680560471858,0.84867254,1815.3,1815.2,0.102625]
[1680560472285,0.84867254,1815.3,1814.9,0.006]
[1680560472495,0.84867254,1815.3,1815.1,0.102625]
[1680560472797,0.84867254,1815.3,1814.8,5.904]
[1680560472798,1.31933079,1815.3,1814.8,0.110625]
[1680560473097,1.31933079,1815.3,1814.4,11.077]
[1680560473098,4.31933079,1815.3,1815.0,0.102625]
[1680560473255,1.92825,1815.1,1814.9,0.102625]
[1680560473461,0.84881254,1815.0,1814.9,0.102625]
[1680560474161,0.84881254,1815.0,1814.6,0.006]
[1680560474369,0.84881254,1815.0,1814.5,0.008]
[1680560474564,1.04387979,1815.0,1814.7,0.102625]
[1680560475206,1.04387979,1815.0,1814.3,5.904]
[1680560475508,1.04387979,1815.0,1814.5,0.102625]
[1680560475659,4.68374,1814.8,1814.5,0.102625]
[1680560475855,4.68374,1814.8,1814.6,0.102625]
[1680560476325,3.897375,1814.7,1814.4,0.006]
[1680560476625,3.897375,1814.7,1814.0,1.11]
[1680560476626,6.36079,1814.6,1814.2,0.102625]
[1680560476837,3.0,1814.5,1814.2,0.102625]
[1680560476990,1.929,1814.4,1814.2,2.86864718]
[1680560477435,1.929,1814.4,1814.2,0.102625]
[1680560478071,1.929,1814.4,1813.8,0.006]
[1680560478280,1.929,1814.4,1814.0,0.102625]
[1680560478589,1.929,1814.4,1813.8,3.36242218]
[1680560478590,4.929,1814.4,1813.8,2.77202218]
[1680560478810,4.929,1814.4,1814.0,0.102625]
[1680560478990,4.68524,1814.2,1814.0,0.102625]
[1680560479394,0.84921254,1814.1,1814.0,0.102625]
[1680560479861,0.84921254,1814.1,1814.0,0.09989138]
[1680560480512,0.84921254,1814.1,1813.5,0.106]
[1680560480723,0.84921254,1814.1,1813.9,0.09989138]
[1680560480927,3.54921254,1814.1,1813.9,0.09989138]
[1680560481233,4.29017779,1814.1,1813.9,0.09989138]
[1680560481543,0.2,1813.8,1813.5,0.106]
[1680560481739,1.30266,1813.8,1813.7,0.09989138]
[1680560481894,2.12964,1813.8,1813.7,0.09989138]
[1680560482888,2.12964,1813.8,1813.6,0.006]
[1680560483127,2.12964,1813.8,1813.5,0.106]
[1680560483328,2.342604,1813.8,1813.5,0.1]
[1680560483503,2.342604,1813.8,1813.6,0.09989138]
[1680560484187,2.12964,1813.8,1813.6,0.09989138]
[1680560484555,2.12964,1813.8,1813.7,0.70885612]
[1680560485486,2.12964,1813.8,1813.5,0.1]
[1680560486654,4.68678,1813.6,1813.5,0.1]
[1680560487611,4.68678,1813.6,1813.5,0.80942242]